[Event "3rd Kolkata GM Open 2018"]
[Site "Kolkata"]
[Date "2018.05.16"]
[Round "3"]
[White "Dixit, Nikhil"]
[Black "Nitin Shankar Madhu"]
[Result "0-1"]
[ECO "B27"]
[WhiteElo "2271"]
[BlackElo "1971"]
[Annotator "NA"]
[PlyCount "66"]
[EventDate "2018.??.??"]
[EventType "swiss"]
[EventCountry "IND"]
[SourceTitle "playchess.com"]
[Source "ChessBase"]
[SourceQuality "1"]
[TimeControl "5400+30"]

1. e4 {[%emt 0:00:00]} c5 {[%emt 0:00:31]} 2. Nf3 {[%emt 0:00:01]} b6 {[%emt 0:00:01]} 3. d4 {[%emt 0:04:36]} cxd4 {[%emt 0:00:01]} 4. Nxd4 {[%emt 0:00:00]} Bb7 {[%emt 0:00:00]} 5. Nc3 {[%emt 0:00:00]} e6 {[%emt 0:00:00] B27: Sicilian: 2 Nf3, unusual Black 2nd moves} (5... a6 6. g3 e6 7. Bg2 Nf6 8. O-O Qc7 9. Re1 d6 10. Nd5 Nxd5 11. exd5 e5 12. f4 Nd7 13. fxe5 Nxe5 {0-1 (59) Safarli,E (2639)-Ponkratov,P (2613) Riadh 2017}) 6. Ndb5 {[%emt 0:07:39]} d6 {[%emt 0:06:54]} (6... Nc6 $16) 7. Bf4 {[%emt 0:00:01]} e5 {[%emt 0:00:00]} 8. Nd5 {[%emt 0:00:52]} Na6 {[%emt 0:09:26]} 9. Nd4 $146 {[%emt 0:02:58]} ({Predecessor:} 9. Be3 $18 Be7 10. Nxe7 Kxe7 11. Nc3 Nf6 12. Bg5 Nc7 13. Bc4 {½-½ (22) Salai,L (2373)-Hera,I (2380) Slovakia 2005}) 9... Nc5 {[%emt 0:13:25]} 10. Bb5+ {[%emt 0:09:23]} Nd7 {[%emt 0:00:00]} 11. Bg5 $2 {[%emt 0:32:47]} (11. Nc6 $14 {stays ahead.} Bxc6 12. Bxc6) 11... Qxg5 {[%emt 0:11:38]} 12. Nc7+ {[%emt 0:00:03]} Ke7 {[%emt 0:00:00]} 13. Nf5+ {[%emt 0:05:59] [#]} Kd8 $1 {[%emt 0:00:00]} 14. Nxa8 {[%emt 0:06:52]} Qxg2 {[%emt 0:02:13]} 15. Ng3 {[%emt 0:16:22]} Qh3 {[%emt 0:00:00]} 16. Qf3 {[%emt 0:00:00]} Ngf6 {[%emt 0:00:00]} 17. Qc3 {[%emt 0:03:04]} Bxa8 {[%emt 0:04:58]} 18. Bc6 {[%emt 0:00:02]} Bxc6 {[%emt 0:00:00]} 19. Qxc6 {[%emt 0:00:00]} g6 {[%emt 0:00:00]} 20. O-O-O {[%emt 0:03:34]} Qe6 {[%emt 0:00:01]} 21. Kb1 {[%emt 0:04:52]} h5 {[%emt 0:00:01]} 22. h4 {[%emt 0:01:07]} Ke7 $19 {[%emt 0:05:02]} 23. f4 {[%emt 0:00:00]} exf4 {[%emt 0:00:00]} 24. Ne2 {[%emt 0:00:00]} Ne5 {[%emt 0:00:00]} 25. Qa8 {[%emt 0:00:00]} Qd7 {[%emt 0:00:01]} 26. Nxf4 {[%emt 0:00:00]} Bg7 {[%emt 0:00:01]} 27. Nd5+ {[%emt 0:00:00]} Nxd5 {[%emt 0:00:00]} 28. Qxd5 {[%emt 0:00:00]} Rc8 {[%emt 0:00:00]} 29. Rhf1 {[%emt 0:01:20]} Rc5 {[%emt 0:06:31]} 30. Qd2 {[%emt 0:00:00]} Qe6 {[%emt 0:00:00]} 31. Qb4 {[%emt 0:00:01]} Nc4 {[%emt 0:04:33]} 32. Rd5 {[%emt 0:00:01]} Ne3 {[%emt 0:01:17]} 33. Re1 {[%emt 0:00:00]} Nxc2 {[%emt 0:00:00]} 0-1